lending/lending_fUSD_20240621
["ID","MTS","AMOUNT","RATE_DAILY","PERIOD"]
[330096786,1718990200122,-500.0,0.00021917,4]
[330096787,1718990200146,-2819.08,0.00021917,4]
[330096788,1718990200172,-500.0,0.00021917,4]
[330096789,1718990200195,-502.33,0.00021917,4]
[330096790,1718990200223,-773.32,0.00021917,4]
[330096791,1718990200246,-1041.21,0.00021917,4]
[330096792,1718990200270,-500.0,0.00021917,4]
[330096793,1718990200296,-1272.01,0.00021917,4]
[330096794,1718990200321,-715.25,0.00021917,4]
[330096795,1718990200347,-721.97,0.00021917,4]
[330096796,1718990200372,-500.0,0.00021917,4]
[330096797,1718990200403,-500.0,0.00021917,4]
[330096798,1718990200429,-629.62,0.00021917,4]
[330096799,1718990200454,-500.0,0.00021917,4]
[330096800,1718990200479,-500.0,0.00021917,4]
[330096801,1718990200503,-500.0,0.00021917,4]
[330096802,1718990200526,-500.0,0.00021917,4]
[330096803,1718990200550,-1205.31,0.00021917,4]
[330096804,1718990200574,-1093.35,0.00021917,4]
[330096805,1718990200597,-500.0,0.00021917,4]
[330096806,1718990200620,-500.0,0.00021917,4]
[330096807,1718990200644,-549.09,0.00021917,4]
[330096808,1718990200667,-500.0,0.00021917,4]
[330096809,1718990200690,-500.0,0.00021917,4]
[330096810,1718990200713,-500.0,0.00021917,4]
[330096811,1718990200739,-1058.1,0.00021917,4]
[330096812,1718990200762,-500.0,0.00021917,4]
[330096813,1718990200786,-563.92,0.00021917,4]
[330096814,1718990200810,-733.12,0.00021917,4]
[330096815,1718990200833,-311.73969459,0.00021917,4]
[330096816,1718990200856,-500.0,0.00021917,4]
[330096817,1718990200880,-511.29,0.00021917,4]
[330096818,1718990200904,-849.22,0.00021917,4]
[330096819,1718990200928,-500.0,0.00021917,4]
[330096820,1718990200952,-939.71,0.00021917,4]
[330096821,1718990200979,-500.0,0.00021917,4]
[330096822,1718990201003,-995.64,0.00021917,4]
[330096823,1718990201031,-572.18,0.0002207,3]
[330096824,1718990201055,-13080.9232,0.0002208,2]
[330096825,1718990201234,-353.5,0.0002208,2]
[330096826,1718990201260,-341.67854935,0.0002209,2]
[330096827,1718990201284,-978.25,0.00022179,4]
[330096828,1718990201312,-500.0,0.00022179,4]
[330096829,1718990201336,-811.91,0.00022179,4]
[330096830,1718990201360,-500.0,0.00022179,4]
[330096831,1718990201384,-948.77,0.00022179,4]
[330096832,1718990201409,-500.0,0.00022179,4]
[330096833,1718990201433,-3399.06,0.00022179,4]
[330096834,1718990201458,-500.0,0.00022179,4]
[330096835,1718990201486,-571.41,0.00022179,4]
[330096836,1718990201510,-500.0,0.00022179,4]
[330096837,1718990201535,-500.0,0.00022179,4]
[330096838,1718990201560,-638.78,0.00022179,4]
[330096839,1718990201587,-2188.55,0.00022179,4]
[330096840,1718990201614,-500.0,0.00022179,4]
[330096841,1718990201640,-500.0,0.00022179,4]
[330096842,1718990201665,-500.0,0.00022179,4]
[330096843,1718990201689,-521.3,0.00022179,4]
[330096844,1718990201713,-643.33,0.00022179,4]
[330096845,1718990201740,-4013.7,0.00022179,4]
[330096846,1718990201765,-3341.87,0.00022179,4]
[330096847,1718990201791,-973.65,0.00022179,4]
[330096848,1718990201816,-1298.27,0.00022179,4]
[330096849,1718990201842,-1160.67,0.00022179,4]
[330096850,1718990201867,-500.0,0.00022179,4]
[330096851,1718990201895,-2431.29,0.00022179,4]
[330096852,1718990201923,-2147.09,0.00022179,4]
[330096853,1718990201949,-955.91,0.00022179,4]
[330096854,1718990201977,-500.0,0.00022179,4]
[330096855,1718990202002,-1988.28,0.00022179,4]
[330096856,1718990202026,-3861.7,0.00022179,4]
[330096857,1718990202050,-1545.69,0.00022179,4]
[330096858,1718990202074,-500.0,0.00022179,4]
[330096859,1718990202097,-500.0,0.00022179,4]
[330096860,1718990202121,-885.76,0.00022179,4]
[330096861,1718990202144,-846.41,0.00022179,4]
[330096862,1718990202167,-1105.64,0.00022179,4]
[330096863,1718990202190,-500.0,0.00022179,4]
[330096864,1718990202216,-1441.35,0.00022179,4]
[330096865,1718990202240,-500.0,0.00022179,4]
[330096866,1718990202268,-500.0,0.00022179,4]
[330096867,1718990202294,-5127.76,0.00022179,4]
[330096868,1718990202317,-500.0,0.00022179,4]
[330096869,1718990202345,-1115.8,0.00022179,4]
[330096870,1718990202370,-522.66,0.00022179,4]
[330096871,1718990202396,-548.81,0.00022179,4]
[330096872,1718990202420,-968.43,0.00022179,4]
[330096873,1718990202444,-2349.44,0.00022179,4]
[330096874,1718990202469,-2270.24,0.00022179,4]
[330096875,1718990202494,-809.02,0.00022179,4]
[330096876,1718990202517,-1181.82,0.00022179,4]
[330096877,1718990202541,-1381.07,0.00022179,4]
[330096878,1718990202566,-500.0,0.00022179,4]
[330096879,1718990202590,-3165.23,0.00022179,4]
[330096880,1718990202613,-635.71,0.00022179,4]
[330096881,1718990202636,-500.0,0.00022179,4]
[330096882,1718990202658,-500.0,0.00022179,4]
[330096883,1718990202682,-607.62,0.00022179,4]
[330096884,1718990202705,-555.30525112,0.00022179,4]
[330096885,1718990202730,-847.05,0.00022179,4]
[330096886,1718990202753,-500.0,0.00022179,4]
[330096887,1718990202775,-614.81,0.00022179,4]
[330096888,1718990202799,-898.14,0.00022179,4]
[330096889,1718990202822,-500.0,0.00022179,4]
[330096890,1718990202846,-625.46,0.00022179,4]
[330096891,1718990202870,-5713.98,0.00022179,4]
[330096892,1718990202893,-266.18499905,0.00022179,4]
[330096893,1718990202918,-1030.59,0.00022179,4]
[330096894,1718990202943,-4502.87,0.00022179,4]
[330096895,1718990202968,-704.08,0.00022179,4]
[330096896,1718990202994,-500.0,0.00022179,4]
[330096897,1718990203019,-2414.13,0.00022179,4]
[330096898,1718990203042,-500.0,0.00022179,4]
[330096899,1718990203066,-539.94,0.00022179,4]
[330096900,1718990203090,-500.0,0.00022179,4]
[330096901,1718990203114,-1707.02,0.00022179,4]
[330096902,1718990203137,-473.42153903,0.00022179,4]
[330096903,1718990203161,-500.0,0.00022179,4]
[330096904,1718990203185,-701.81,0.00022179,4]
[330096905,1718990203213,-1013.17,0.00022179,4]
[330096906,1718990203247,-500.0,0.00022179,4]
[330096907,1718990203271,-500.0,0.00022179,4]
[330096908,1718990203298,-613.35,0.00022179,4]
[330096909,1718990203322,-4235.6,0.00022179,4]
[330096910,1718990203346,-500.0,0.0002218,4]
[330096911,1718990203371,-500.0,0.0002218,4]
[330096912,1718990203395,-500.0,0.0002218,4]
[330096913,1718990203420,-2065.38,0.0002218,4]
[330096914,1718990203444,-861.17,0.0002218,4]
[330096915,1718990203469,-500.0,0.0002218,4]
[330096916,1718990203495,-500.0,0.0002218,4]
[330096917,1718990203518,-500.0,0.0002218,4]
[330096918,1718990203542,-1399.75,0.0002218,4]
[330096919,1718990203567,-500.0,0.0002218,4]
[330096920,1718990203592,-500.0,0.0002218,4]
[330096921,1718990203618,-500.0,0.0002218,4]
[330096922,1718990203642,-500.0,0.0002218,4]
[330096923,1718990203666,-500.0,0.0002218,4]
[330096924,1718990203691,-500.0,0.0002218,4]
[330096925,1718990203717,-500.0,0.0002218,4]
[330096926,1718990203743,-500.0,0.0002218,4]
[330096927,1718990203768,-500.0,0.0002218,4]
[330096928,1718990203793,-500.0,0.0002218,4]
[330096929,1718990203818,-500.0,0.0002218,4]
[330096930,1718990204006,-550.41596801,0.0002218,4]
[330096931,1718990204033,-525.71,0.0002218,4]
[330096932,1718990204058,-500.0,0.0002218,4]
[330096933,1718990204084,-500.0,0.0002218,4]
[330096934,1718990204116,-500.0,0.0002218,4]
[330096935,1718990204142,-500.0,0.0002218,4]
[330096936,1718990204168,-1478.18,0.0002218,4]
[330096937,1718990204194,-500.0,0.0002218,4]
[330096938,1718990204226,-1109.1,0.0002218,4]
[330096939,1718990204256,-500.0,0.0002218,4]
[330096940,1718990204281,-219.92626604,0.0002218,4]
[330096941,1718990204305,-500.0,0.0002218,4]
[330096942,1718990204330,-500.0,0.0002218,4]
[330096943,1718990204355,-500.0,0.0002218,4]
[330096944,1718990204380,-500.0,0.0002218,4]
[330096945,1718990204406,-878.35,0.0002218,4]
[330096946,1718990204430,-500.0,0.0002218,4]
[330096947,1718990204456,-1467.19,0.0002218,4]
[330096948,1718990204482,-500.0,0.0002218,4]
[330096949,1718990204506,-500.0,0.0002218,4]
[330096950,1718990204532,-500.0,0.0002218,4]
[330096951,1718990204559,-322.31659873,0.0002218,4]
[330096952,1718990204586,-500.0,0.0002218,4]
[330096953,1718990204612,-655.01,0.0002218,4]
[330096954,1718990204638,-500.0,0.0002218,4]
[330096955,1718990204663,-500.0,0.0002218,4]
[330096956,1718990204686,-500.0,0.0002218,4]
[330096957,1718990204710,-2889.89,0.0002218,4]
[330096958,1718990204735,-500.0,0.0002218,4]
[330096959,1718990204759,-500.0,0.0002218,4]
[330096960,1718990204783,-500.0,0.0002218,4]
[330096961,1718990204806,-500.0,0.0002218,4]
[330096962,1718990204830,-500.0,0.0002218,4]
[330096963,1718990204855,-500.0,0.0002218,4]
[330096964,1718990204880,-500.0,0.0002218,4]
[330096965,1718990204905,-2343.28,0.0002218,4]
[330096966,1718990204930,-500.0,0.0002218,4]
[330096967,1718990204955,-573.25939911,0.0002218,4]
[330096968,1718990204980,-500.0,0.0002218,4]
[330096969,1718990205003,-634.99720748,0.0002218,4]
[330096970,1718990205027,-1117.24,0.0002218,4]
[330096971,1718990205054,-1118.35,0.0002218,4]
[330096972,1718990205077,-500.0,0.0002218,4]
[330096973,1718990205102,-500.0,0.0002218,4]
[330096974,1718990205125,-500.0,0.0002218,4]
[330096975,1718990205151,-634.94,0.0002218,4]
[330096976,1718990205174,-500.0,0.0002218,4]
[330096977,1718990205198,-500.0,0.0002218,4]
[330096978,1718990205227,-500.0,0.0002218,4]
[330096979,1718990205252,-500.0,0.0002218,4]
[330096980,1718990205276,-1606.1,0.0002218,4]
[330096981,1718990205304,-947.93,0.0002218,4]
[330096982,1718990205329,-649.0939423,0.0002218,4]
[330096983,1718990205353,-500.0,0.0002218,4]
[330096984,1718990205377,-500.0,0.0002218,4]
[330096985,1718990205402,-500.0,0.0002218,4]
[330096986,1718990205427,-500.0,0.0002218,4]
[330096987,1718990205452,-500.0,0.0002218,4]
[330096988,1718990205478,-1399.02,0.0002218,4]
[330096989,1718990205502,-1171.77,0.0002218,4]
[330096990,1718990205527,-910.29,0.0002218,4]
[330096991,1718990205550,-2297.03,0.0002218,4]
[330096992,1718990205575,-579.98,0.0002218,4]
[330096993,1718990205601,-500.0,0.0002218,4]
[330096994,1718990205626,-707.22,0.0002218,4]
[330096995,1718990205650,-2945.36,0.0002218,4]
[330096996,1718990205674,-500.0,0.0002218,4]
[330096997,1718990205700,-500.0,0.0002218,4]
[330096998,1718990205725,-500.0,0.0002218,4]
[330096999,1718990205751,-1537.71,0.0002218,4]
[330097000,1718990205779,-800.03,0.0002218,4]
[330097001,1718990205805,-668.3,0.0002218,4]
[330097002,1718990205829,-1217.47,0.0002218,4]
[330097003,1718990205857,-735.45,0.0002218,4]
[330097004,1718990205883,-609.35,0.0002218,4]
[330097005,1718990205909,-721.45,0.0002218,4]
[330097006,1718990205937,-4436.8,0.0002218,4]
[330097007,1718990205964,-910.08,0.0002218,4]
[330097008,1718990205990,-303.10717947,0.0002218,4]
[330097009,1718990206014,-539.26,0.0002218,4]
[330097010,1718990206038,-500.0,0.0002218,4]
[330097011,1718990206064,-26868.69,0.0002218,4]
[330097012,1718990206088,-336.67809529,0.0002218,4]
[330097013,1718990206111,-500.0,0.0002218,4]
[330097014,1718990206135,-700.96,0.0002218,4]
[330097015,1718990206158,-500.0,0.0002218,4]
[330097016,1718990206182,-991.48,0.0002218,4]
[330097017,1718990206218,-500.0,0.0002218,4]
[330097018,1718990206243,-639.07,0.0002218,4]
[330097019,1718990206270,-500.0,0.0002218,4]
[330097020,1718990206301,-500.0,0.0002218,4]
[330097021,1718990206326,-500.0,0.0002218,4]
[330097022,1718990206351,-679.24,0.0002218,4]
[330097023,1718990206374,-1944.21,0.0002218,4]
[330097024,1718990206396,-640.29,0.0002218,4]
[330097025,1718990206420,-1000.0,0.0002218,4]
[330097026,1718990206443,-500.0,0.0002218,4]
[330097027,1718990206467,-688.59,0.0002218,4]
[330097028,1718990206491,-500.0,0.0002218,4]
[330097029,1718990206515,-500.0,0.0002218,4]
[330097030,1718990206539,-500.0,0.0002218,4]
[330097031,1718990206562,-500.0,0.0002218,4]
[330097032,1718990206587,-500.0,0.0002218,4]
[330097033,1718990206610,-500.0,0.0002218,4]
[330097034,1718990206635,-500.0,0.0002218,4]
[330097035,1718990206807,-500.0,0.0002218,4]
[330097036,1718990206840,-710.57,0.0002218,4]
[330097037,1718990206867,-500.0,0.0002218,4]
[330097038,1718990206892,-531.96,0.0002218,4]
[330097039,1718990206916,-686.32,0.0002218,4]
[330097040,1718990206941,-637.19511725,0.0002218,4]
[330097041,1718990206965,-661.54,0.0002218,4]
[330097042,1718990206991,-500.0,0.0002218,4]
[330097043,1718990207018,-500.0,0.0002218,4]
[330097044,1718990207042,-626.67755454,0.0002218,4]
[330097045,1718990207066,-500.0,0.0002218,4]
[330097046,1718990207090,-994.93,0.0002218,4]
[330097047,1718990207114,-500.0,0.0002218,4]
[330097048,1718990207139,-1307.11,0.0002218,4]
[330097049,1718990207162,-590.87771198,0.0002218,4]
[330097050,1718990207185,-178.87142526,0.0002218,4]
[330097051,1718990207213,-694.0,0.0002218,4]
[330097052,1718990207238,-500.0,0.0002218,4]
[330097053,1718990207265,-694.8,0.0002218,4]
[330097054,1718990207290,-500.0,0.0002218,4]
[330097055,1718990207315,-964.82,0.0002218,4]
[330097056,1718990207338,-500.0,0.0002218,4]
[330097057,1718990207363,-1428.73,0.0002218,4]
[330097058,1718990207387,-1655.79,0.0002218,4]
[330097059,1718990207410,-500.0,0.0002218,4]
[330097060,1718990207435,-1540.92,0.0002218,4]
[330097061,1718990207458,-500.0,0.0002218,4]
[330097062,1718990207487,-1603.97,0.0002218,4]
[330097063,1718990207518,-500.0,0.0002218,4]
[330097064,1718990207543,-1222.36,0.0002218,4]
[330097065,1718990207568,-500.0,0.0002218,4]
[330097066,1718990207591,-500.0,0.0002218,4]
[330097067,1718990207616,-500.0,0.0002218,4]
[330097068,1718990207640,-631.12708239,0.0002218,4]
[330097069,1718990207664,-3764.05,0.0002218,4]
[330097070,1718990207689,-1199.19,0.0002218,4]
[330097071,1718990207713,-500.0,0.0002218,4]
[330097072,1718990207742,-500.0,0.0002218,4]
[330097073,1718990207765,-818.18,0.0002218,4]
[330097074,1718990207788,-500.0,0.0002218,4]
[330097075,1718990207812,-1495.2,0.0002218,4]
[330097076,1718990207836,-530.93,0.0002218,4]
[330097077,1718990207861,-500.0,0.0002218,4]
[330097078,1718990207886,-500.0,0.0002218,4]
[330097079,1718990207912,-185.19970642,0.0002218,4]
[330097080,1718990207936,-928.11,0.0002218,4]
[330097081,1718990207962,-1677.55,0.0002218,4]
[330097082,1718990207990,-500.0,0.0002218,4]
[330097083,1718990208015,-804.03,0.0002218,4]
[330097084,1718990208038,-500.0,0.0002218,4]
[330097085,1718990208062,-500.0,0.0002218,4]
[330097086,1718990208087,-708.0,0.0002218,4]
[330097087,1718990208110,-555.31846216,0.0002218,4]
[330097088,1718990208137,-1917.92,0.0002218,4]
[330097089,1718990208162,-500.0,0.0002218,4]
[330097090,1718990208196,-500.0,0.0002218,4]
[330097091,1718990208231,-908.98,0.0002218,4]
[330097092,1718990208256,-2715.91,0.0002218,4]
[330097093,1718990208281,-718.56,0.0002218,4]
[330097094,1718990208310,-500.0,0.0002218,4]
[330097095,1718990208334,-500.0,0.0002218,4]
[330097096,1718990208359,-500.0,0.0002218,4]
[330097097,1718990208385,-637.26,0.0002218,4]
[330097098,1718990208411,-772.88,0.0002218,4]
[330097099,1718990208435,-604.61,0.0002218,4]
[330097100,1718990208460,-250.0,0.0002218,4]
[330097101,1718990208489,-4735.78,0.0002218,4]
[330097102,1718990208515,-500.0,0.0002218,4]
[330097103,1718990208540,-1743.39,0.0002219,4]
[330097104,1718990208564,-500.0,0.0002219,4]
[330097105,1718990208592,-2232.82,0.0002219,4]
[330097106,1718990208616,-595.1,0.0002219,4]
[330097107,1718990208640,-2218.19,0.0002219,4]
[330097108,1718990208666,-1884.7,0.0002219,4]
[330097109,1718990208691,-1474.02,0.0002219,4]
[330097110,1718990208716,-7912.53,0.0002219,4]
[330097111,1718990208742,-1769.35,0.0002219,4]
[330097112,1718990208766,-500.0,0.0002219,4]
[330097113,1718990208792,-2613.48,0.0002219,4]
[330097114,1718990208817,-503.57,0.0002219,4]
[330097115,1718990208842,-500.0,0.0002219,4]
[330097116,1718990208867,-2689.75,0.0002219,4]
[330097117,1718990208893,-1323.27,0.0002219,4]
[330097118,1718990208919,-3901.69,0.0002219,4]
[330097119,1718990208949,-906.33,0.0002219,4]
[330097120,1718990208975,-500.0,0.0002219,4]
[330097121,1718990209002,-2621.17,0.0002219,4]
[330097122,1718990209029,-2000.0,0.0002219,4]
[330097123,1718990209055,-2675.96,0.0002219,4]
[330097124,1718990209082,-657.15,0.0002219,4]
[330097125,1718990209108,-1897.24,0.0002219,4]
[330097126,1718990209135,-1285.76,0.0002219,4]
[330097127,1718990209161,-500.0,0.0002219,4]
[330097128,1718990209187,-500.0,0.0002219,4]
[330097129,1718990209218,-39542.29,0.0002219,4]
[330097130,1718990209247,-1219.33,0.0002219,4]
[330097131,1718990209274,-500.0,0.0002219,4]
[330097132,1718990209302,-500.0,0.0002219,4]
[330097133,1718990209328,-6141.08,0.0002219,4]
[330097134,1718990209355,-5538.29,0.0002219,4]
[330097135,1718990209380,-500.0,0.0002219,4]
[330097136,1718990209405,-500.0,0.0002219,4]
[330097137,1718990209432,-482.76727412,0.0002219,2]
[330097138,1718990209458,-5568.61,0.0002219,4]
[330097139,1718990209485,-1777.62,0.0002219,4]
[330097140,1718990209788,-500.0,0.0002219,4]
[330097141,1718990209818,-7780.39,0.0002219,4]
[330097142,1718990209844,-500.0,0.00022191,4]
[330097143,1718990209868,-500.0,0.00022191,4]
[330097144,1718990209892,-1005.8,0.00022191,4]
[330097145,1718990209917,-772.45,0.00022191,4]
[330097146,1718990209941,-500.0,0.00022191,4]
[330097147,1718990209965,-500.0,0.00022191,4]
[330097148,1718990209995,-1487.67,0.00022191,4]
[330097149,1718990210019,-500.0,0.00022191,4]
[330097150,1718990210048,-500.0,0.00022191,4]
[330097151,1718990210073,-500.0,0.00022191,4]
[330097152,1718990210097,-500.0,0.00022191,4]
[330097153,1718990210121,-500.0,0.00022191,4]
[330097154,1718990210144,-500.0,0.00022191,4]
[330097155,1718990210168,-1302.06,0.00022191,4]
[330097156,1718990210193,-500.0,0.00022191,4]
[330097157,1718990210221,-500.0,0.00022191,4]
[330097158,1718990210249,-500.0,0.00022191,4]
[330097159,1718990210276,-500.0,0.00022191,4]
[330097160,1718990210303,-500.0,0.00022191,4]
[330097161,1718990210328,-1105.45,0.00022191,4]
[330097162,1718990210352,-500.0,0.00022191,4]
[330097163,1718990210377,-500.0,0.00022191,2]
[330097164,1718990210401,-500.0,0.00022191,4]
[330097165,1718990210425,-500.0,0.00022191,4]
[330097166,1718990210449,-500.0,0.00022191,4]
[330097167,1718990210473,-500.0,0.00022191,4]
[330097168,1718990210499,-500.0,0.00022191,4]
[330097169,1718990210523,-500.0,0.00022191,4]
[330097170,1718990210547,-500.0,0.00022191,4]
[330097171,1718990210570,-500.0,0.00022191,4]
[330097172,1718990210596,-500.0,0.00022191,4]
[330097173,1718990210620,-500.0,0.00022191,4]
[330097174,1718990210644,-500.0,0.00022191,4]
[330097175,1718990210668,-500.0,0.00022191,4]
[330097176,1718990210692,-500.0,0.00022191,4]
[330097177,1718990210717,-500.0,0.00022191,4]
[330097178,1718990210743,-500.0,0.00022191,4]
[330097179,1718990210769,-500.0,0.00022191,4]
[330097180,1718990210794,-500.0,0.00022191,4]
[330097181,1718990210818,-1605.24,0.00022191,4]
[330097182,1718990210842,-500.0,0.00022191,4]
[330097183,1718990210867,-569.56,0.00022191,4]
[330097184,1718990210890,-500.0,0.00022191,4]
[330097185,1718990210914,-812.48,0.00022191,4]
[330097186,1718990210937,-500.0,0.00022191,4]
[330097187,1718990210960,-500.0,0.00022191,4]
[330097188,1718990210986,-500.0,0.00022191,4]
[330097189,1718990211010,-500.0,0.00022191,4]
[330097190,1718990211036,-1061.28,0.00022191,4]
[330097191,1718990211060,-500.0,0.00022191,4]
[330097192,1718990211087,-758.73,0.00022191,4]
[330097193,1718990211111,-542.96,0.00022191,4]
[330097194,1718990211135,-500.0,0.00022191,4]
[330097195,1718990211160,-500.0,0.00022191,4]
[330097196,1718990211183,-500.0,0.00022191,4]
[330097197,1718990211208,-500.0,0.00022191,4]
[330097198,1718990211237,-500.0,0.00022191,4]
[330097199,1718990211260,-965.65,0.00022191,4]
[330097200,1718990211290,-5279.74,0.00022191,4]
[330097201,1718990211314,-1112.63,0.00022191,4]
[330097202,1718990211338,-500.0,0.00022191,4]
[330097203,1718990211363,-1038.94,0.00022191,4]
[330097204,1718990211388,-500.0,0.00022191,4]
[330097205,1718990211416,-1022.28,0.00022191,4]
[330097206,1718990211442,-500.0,0.00022191,4]
[330097207,1718990211465,-594.05,0.00022191,4]
[330097208,1718990211494,-500.0,0.00022191,4]
[330097209,1718990211519,-1150.63,0.00022191,4]
[330097210,1718990211547,-500.0,0.00022191,4]
[330097211,1718990211571,-500.0,0.00022191,4]
[330097212,1718990211609,-500.0,0.00022191,4]
[330097213,1718990211638,-753.1,0.00022191,4]
[330097214,1718990211664,-923.38,0.00022191,4]
[330097215,1718990211688,-500.0,0.00022191,4]
[330097216,1718990211714,-871.28,0.00022191,4]
[330097217,1718990211738,-500.0,0.00022191,4]
[330097218,1718990211764,-500.0,0.00022191,4]
[330097219,1718990211790,-500.0,0.00022191,4]
[330097220,1718990211816,-500.0,0.00022191,4]
[330097221,1718990211840,-1260.42,0.00022191,4]
[330097222,1718990211864,-697.22,0.00022191,4]
[330097223,1718990211889,-534.86,0.00022191,4]
[330097224,1718990211913,-714.72,0.00022191,4]
[330097225,1718990211938,-9716.81,0.00022191,4]
[330097226,1718990211963,-500.0,0.00022191,4]
[330097227,1718990211989,-2819.08,0.00022191,4]
[330097228,1718990212014,-500.0,0.00022191,4]
[330097229,1718990212040,-502.33,0.00022191,4]
[330097230,1718990212070,-773.32,0.00022191,4]
[330097231,1718990212095,-1041.21,0.00022191,4]
[330097232,1718990212120,-500.0,0.00022191,4]
[330097233,1718990212145,-1272.01,0.00022191,4]
[330097234,1718990212170,-715.25,0.00022191,4]
[330097235,1718990212195,-721.97,0.00022191,4]
[330097236,1718990212227,-500.0,0.00022191,4]
[330097237,1718990212253,-500.0,0.00022191,4]
[330097238,1718990212279,-629.62,0.00022191,4]
[330097239,1718990212308,-500.0,0.00022191,4]
[330097240,1718990212339,-500.0,0.00022191,4]
[330097241,1718990212365,-500.0,0.00022191,4]
[330097242,1718990212393,-500.0,0.00022191,4]
[330097243,1718990212420,-1205.31,0.00022191,4]
[330097244,1718990212447,-1093.35,0.00022191,4]
[330097245,1718990212489,-500.0,0.00022191,4]
[330097246,1718990212514,-500.0,0.00022191,4]
[330097247,1718990212539,-549.09,0.00022191,4]
[330097248,1718990212565,-500.0,0.00022191,4]
[330097249,1718990212591,-500.0,0.00022191,4]
[330097250,1718990212616,-500.0,0.00022191,4]
[330097251,1718990212642,-1058.1,0.00022191,4]
[330097252,1718990212667,-500.0,0.00022191,4]
[330097253,1718990212692,-563.92,0.00022191,4]
[330097254,1718990212717,-733.12,0.00022191,4]
[330097255,1718990212742,-511.29,0.00022191,4]
[330097256,1718990212767,-500.0,0.00022191,4]
[330097257,1718990212793,-849.22,0.00022191,4]
[330097258,1718990212819,-500.0,0.00022191,4]
[330097259,1718990212846,-939.71,0.00022191,4]
[330097260,1718990212871,-500.0,0.00022191,4]
[330097261,1718990212896,-995.64,0.00022191,4]
[330097262,1718990212922,-1982.1733,0.00022365,2]
[330097263,1718990212952,-196.02424583,0.00022452,2]
[330097264,1718990212978,-2076.34327369,0.00022452,2]
[330097265,1718990213007,-955.49830246,0.00022452,2]
[330097266,1718990213041,-293.73549078,0.00022452,2]
[330097267,1718990213068,-529.36748381,0.00022452,2]
[330097268,1718990213094,-155.0,0.00022452,2]
[330097269,1718990213120,-492.18105458,0.00022452,2]
[330097270,1718990213145,-491.4546726,0.00022452,2]
[330097271,1718990213171,-217.67398709,0.00022452,2]
[330097272,1718990213200,-453.57544071,0.00022452,2]
[330097273,1718990213234,-2198.0801445,0.00022452,2]
[330097274,1718990213260,-163.65338323,0.00022452,2]
[330097275,1718990213285,-155.11381824,0.00022452,2]
[330097276,1718990213312,-437.90975551,0.00022452,2]
[330097277,1718990213337,-978.25,0.00022453,4]
[330097278,1718990213364,-500.0,0.00022453,4]
[330097279,1718990213391,-811.91,0.00022453,4]
[330097280,1718990213418,-500.0,0.00022453,4]
[330097281,1718990213444,-948.77,0.00022453,4]
[330097282,1718990213469,-500.0,0.00022453,4]
[330097283,1718990213496,-3399.06,0.00022453,4]
[330097284,1718990213520,-500.0,0.00022453,4]
[330097285,1718990213546,-571.41,0.00022453,4]